bitfinex/quotes_ETHUSD_20241223
["timestamp","ask_amount","ask_price","bid_price","bid_amount"]
[1734941994357,0.815,3305.3,3304.6,4.19664196]
[1734941994561,0.8029,3305.6,3305.1,3.02562]
[1734941996006,0.8029,3305.6,3305.2,3.0255]
[1734941996159,0.8029,3305.6,3305.0,11.70523964]
[1734941997000,0.8029,3305.6,3305.0,8.67955964]
[1734941998210,0.8029,3305.6,3305.1,8.67955964]
[1734941999601,0.8029,3305.6,3305.3,3.02543]
[1734941999808,0.7903,3306.1,3305.5,3.02526]
[1734942000014,3.31981924,3306.1,3305.5,3.02526]
[1734942000717,3.31981924,3306.1,3305.7,3.02507]
[1734942000920,0.7903,3306.1,3305.5,3.02524]
[1734942001231,0.7903,3306.1,3305.5,0.82152004]
[1734942001521,0.7903,3306.1,3305.4,8.67955964]
[1734942001905,0.02106558,3306.0,3305.4,8.67955964]
[1734942002105,0.7903,3306.1,3305.4,8.67955964]
[1734942003706,0.02106558,3306.0,3305.4,8.67955964]
[1734942004219,0.02106558,3306.0,3305.5,8.67955964]
[1734942004403,0.7903,3306.1,3305.5,8.67955964]
[1734942005828,0.7903,3306.1,3305.5,11.70477964]
[1734942007919,0.02106558,3306.0,3305.5,8.67955964]
[1734942008132,0.7948,3305.8,3305.2,8.67955964]
[1734942008332,3.02537,3305.4,3304.5,8.67955964]
[1734942008535,0.7948,3305.3,3304.5,13.17476691]
[1734942008720,0.81586558,3305.3,3304.5,13.17476691]
[1734942009320,0.81586558,3305.3,3304.5,8.67955964]
[1734942009532,3.04656558,3305.3,3304.5,8.67955964]
[1734942009719,3.78063,3305.2,3304.3,8.67955964]
[1734942010372,0.7551,3305.2,3304.3,10.90854273]
[1734942010878,0.7551,3305.2,3304.5,3.02617]
[1734942011056,0.7551,3305.2,3304.5,4.41964127]
[1734942011548,0.7551,3305.2,3304.5,3.02617]
[1734942012072,0.7551,3305.2,3304.3,10.90854273]
[1734942012269,0.7551,3305.2,3304.7,3.02597]
[1734942012770,2.52951924,3305.6,3305.0,8.67955964]
[1734942012976,2.52951924,3305.6,3304.9,2.22898309]
[1734942012977,2.52951924,3305.6,3305.2,8.67955964]
[1734942013124,2.52951924,3305.6,3305.4,3.02534]
[1734942013319,2.52951924,3305.6,3305.2,11.70504964]
[1734942013535,0.8091,3306.0,3305.2,11.70504964]
[1734942014654,0.02106558,3305.9,3305.2,11.70504964]
[1734942015921,3.79869,3305.8,3305.2,8.67955964]
[1734942016171,0.7737,3305.8,3304.9,8.67955964]
[1734942016367,0.7737,3305.5,3304.9,8.67955964]
[1734942016674,3.78384,3305.2,3304.9,8.67955964]
[1734942016979,0.02106558,3305.1,3304.9,8.67955964]
[1734942017872,0.7571,3305.0,3304.2,8.67955964]
[1734942018175,0.7571,3304.6,3304.2,8.67955964]
[1734942018381,0.02106558,3304.5,3304.2,8.67955964]
[1734942018672,0.02106558,3304.5,3303.7,8.67955964]
[1734942018876,3.04723558,3304.5,3303.8,1.17065296]
[1734942019169,3.04723558,3304.5,3303.7,8.67955964]
[1734942019377,0.8271,3304.4,3303.5,11.70664964]
[1734942020072,0.8271,3304.4,3303.6,3.02692]
[1734942020237,0.8271,3304.4,3303.9,3.0267]
[1734942020437,0.8271,3304.4,3304.0,0.30267]
[1734942020740,2.52951924,3304.7,3304.0,0.30267]
[1734942021055,2.52951924,3304.7,3303.8,0.8134]
[1734942021262,2.52951924,3304.7,3304.2,3.02642]
[1734942021579,0.8241,3304.8,3304.2,3.02642]
[1734942022170,0.8241,3304.8,3304.0,2.22898309]
[1734942022326,0.8241,3304.8,3304.0,5.25557309]
[1734942023024,0.8241,3304.8,3304.1,0.52555731]
[1734942023251,0.8241,3304.8,3304.2,3.02643]
[1734942023436,0.7805,3305.1,3304.2,8.67955964]
[1734942023636,2.52951924,3305.2,3304.6,3.00028309]
[1734942023836,2.52951924,3305.2,3305.1,3.02562]
[1734942024036,2.52951924,3305.3,3304.8,8.67955964]
[1734942024374,2.52951924,3305.3,3304.9,3.02578]
[1734942024669,0.79186558,3305.2,3304.2,8.67955964]
[1734942025033,0.7708,3305.2,3304.2,8.67955964]
[1734942025227,3.79637,3305.2,3304.2,8.67955964]
[1734942025570,0.02106558,3305.1,3304.2,8.67955964]
[1734942025865,0.02106558,3305.1,3304.2,9.8501686]
[1734942026432,0.7829,3305.0,3304.2,8.67955964]
[1734942026632,3.0259,3304.8,3304.2,8.67955964]
[1734942026874,0.7829,3304.7,3304.2,8.67955964]
[1734942027367,0.02106558,3304.6,3304.2,8.67955964]
[1734942028275,0.02106558,3304.6,3303.9,8.67955964]
[1734942029039,0.7829,3304.7,3303.9,9.60667759]
[1734942029259,0.7829,3304.7,3304.2,3.02638]
[1734942029456,2.52951924,3304.9,3304.2,3.02638]
[1734942030746,0.8293,3305.0,3304.2,3.02638]
[1734942031140,0.8293,3305.0,3304.2,11.70593964]
[1734942031348,0.8293,3305.0,3304.2,9.9284636]
[1734942031549,3.8551,3305.0,3304.2,8.67955964]
[1734942031754,0.02106558,3304.9,3304.2,8.67955964]
[1734942032374,0.8293,3305.0,3304.2,8.67955964]
[1734942033057,0.02106558,3304.9,3304.2,8.67955964]
[1734942033538,0.764,3304.8,3304.2,8.67955964]
[1734942033876,0.02106558,3304.7,3304.2,8.67955964]
[1734942034172,0.02106558,3304.7,3303.8,8.67955964]
[1734942034383,0.02106558,3304.7,3303.8,9.9075359]
[1734942034731,3.04706558,3304.7,3303.8,12.9343459]
[1734942036537,3.04706558,3304.7,3303.8,9.9075359]
[1734942036785,0.798,3304.6,3303.8,8.67955964]
[1734942036974,0.798,3304.6,3304.0,3.02656]
[1734942037148,0.798,3304.6,3303.8,11.70634964]
[1734942037543,0.798,3304.6,3303.9,3.02667]
[1734942037788,0.798,3304.6,3304.0,3.0266]
[1734942037986,0.7841,3304.9,3304.1,1.08896]
[1734942038184,0.7841,3304.9,3304.1,0.7863]
[1734942038901,0.7841,3304.9,3303.7,0.59161987]
[1734942038902,3.02611,3304.6,3303.7,0.59161987]
[1734942039190,0.8181,3304.3,3303.1,8.67955964]
[1734942039396,0.7815,3303.8,3303.1,8.67955964]
[1734942039550,3.02715,3303.5,3303.1,8.67955964]
[1734942039748,0.7815,3303.3,3303.0,1.26063337]
[1734942039997,3.02737,3303.2,3303.0,1.26063337]
[1734942040290,0.7815,3303.3,3302.7,0.60849935]
[1734942040493,10.78499233,3304.2,3302.1,8.67955964]
[1734942040494,3.02785,3302.7,3302.1,8.67955964]
[1734942040695,0.7768,3302.5,3302.1,8.67955964]
[1734942042549,0.02106558,3302.4,3302.1,8.67955964]
[1734942043176,0.02106558,3302.4,3301.6,3.0]
[1734942043382,3.80481,3302.5,3301.6,3.0]
[1734942044155,0.02106558,3302.4,3301.6,8.67955964]
[1734942044890,3.02836,3302.2,3301.6,8.67955964]
[1734942045096,0.81076558,3302.1,3301.6,8.67955964]
[1734942045573,0.7897,3302.1,3301.6,8.67955964]
[1734942046455,0.81076558,3302.1,3301.6,8.67955964]
[1734942046750,0.7897,3302.1,3301.6,8.67955964]
[1734942046993,0.7897,3302.1,3301.6,9.5475156]
[1734942047196,0.7525,3302.7,3302.1,3.02829]
[1734942047384,0.7525,3302.7,3301.7,3.8291]
[1734942047585,0.7525,3302.7,3302.0,3.02839]
[1734942047808,0.7525,3302.7,3302.1,3.02835]
[1734942048107,0.7525,3302.7,3302.1,3.331185]
[1734942048264,0.7525,3302.7,3301.9,3.02853]
[1734942048469,0.7525,3302.7,3302.1,3.02837]
[1734942049184,0.756,3303.3,3302.3,8.67955964]
[1734942049383,0.756,3303.3,3302.4,3.81696]
[1734942050113,0.756,3303.3,3302.4,0.7889]
[1734942050299,0.77706558,3303.3,3302.4,0.7889]
[1734942050614,0.756,3303.3,3302.4,0.7889]
[1734942050798,0.756,3303.3,3302.4,4.76381596]
[1734942051281,0.02106558,3303.2,3302.3,8.67955964]
[1734942051484,0.8061,3302.9,3302.3,8.67955964]
[1734942052315,0.8061,3302.9,3302.2,8.67955964]
[1734942052668,0.7951,3303.2,3302.2,8.67955964]
[1734942053481,3.0,3303.7,3302.9,3.02759]
[1734942053482,0.7889,3303.7,3302.9,3.02759]
[1734942053816,0.7889,3303.7,3303.0,9.74351864]
[1734942054106,0.7889,3303.7,3303.0,12.77103864]
[1734942054608,0.7889,3303.7,3303.1,3.02742]
[1734942054814,0.7889,3303.7,3303.2,3.02736]
[1734942054995,2.52951924,3304.0,3303.0,9.74351864]
[1734942054996,2.52951924,3304.0,3303.3,8.67955964]
[1734942055201,2.52951924,3304.0,3303.4,3.02717]
[1734942055711,0.7617,3304.1,3303.4,8.67955964]
[1734942055898,0.7882,3304.6,3303.5,3.0]
[1734942056101,0.7882,3304.6,3303.7,0.8148]
[1734942056299,2.52951924,3304.7,3304.2,3.0264]
[1734942056801,2.52951924,3304.7,3304.4,11.70580964]
[1734942057312,4.42665867,3305.5,3304.4,11.70580964]
[1734942057313,3.33441924,3305.2,3304.4,11.70580964]
[1734942058071,0.8049,3305.2,3304.4,11.70580964]
[1734942058311,0.8049,3305.2,3304.4,8.67955964]
[1734942060722,0.8049,3305.2,3304.5,0.82865939]
[1734942060931,0.8049,3305.2,3304.4,9.9672092]
[1734942061132,0.8049,3305.2,3304.4,8.67955964]
[1734942061333,0.8049,3305.2,3304.5,8.67955964]
[1734942062092,3.02582,3304.9,3304.5,8.67955964]
[1734942062293,3.04677558,3305.1,3304.5,8.67955964]
[1734942062624,3.02589,3304.9,3304.5,8.67955964]
[1734942062934,0.02106558,3304.8,3304.5,8.67955964]
[1734942063901,3.02608,3304.6,3304.5,8.67955964]
[1734942064236,0.8012,3304.7,3303.5,9.46035964]
[1734942064438,0.8012,3304.2,3303.4,8.67955964]
[1734942064612,3.02656,3304.1,3303.4,8.67955964]
[1734942065536,3.02667,3304.0,3303.2,8.67955964]
[1734942065741,0.8012,3304.2,3303.2,13.27322931]
[1734942065941,0.8012,3304.2,3303.3,3.02721]
[1734942066247,0.7594,3303.3,3302.4,9.49705964]
[1734942066740,3.78671,3303.3,3302.4,9.49705964]
[1734942066943,3.04843558,3303.2,3302.4,9.49705964]
[1734942067102,3.04843558,3303.2,3302.4,10.7495936]
[1734942067818,3.02758,3303.0,3302.4,8.67955964]
[1734942068005,0.02106558,3302.9,3302.4,8.67955964]
[1734942068917,3.02777,3302.8,3302.4,8.67955964]
[1734942069146,3.04889558,3302.7,3302.4,8.67955964]
[1734942069344,3.02783,3302.7,3302.4,8.67955964]
[1734942069754,0.02106558,3302.6,3301.9,9.47215964]
[1734942070047,0.02106558,3302.6,3301.9,10.25272554]
[1734942070254,0.826,3302.6,3301.6,3.65163802]
[1734942070550,3.02827,3302.3,3301.6,8.67955964]
[1734942070760,0.02106558,3302.2,3301.6,8.67955964]
[1734942071632,3.02837,3302.2,3301.6,8.67955964]
[1734942072305,3.04913558,3302.5,3301.6,8.67955964]
[1734942072505,0.826,3302.6,3301.6,8.67955964]
[1734942072745,0.826,3302.6,3301.6,9.04182895]
[1734942073313,3.85395,3302.6,3301.6,9.04182895]
[1734942075450,3.85395,3302.6,3301.6,9.64026388]
[1734942075854,3.85395,3302.6,3301.6,12.66908388]
[1734942076214,3.85395,3302.6,3301.7,8.67955964]
[1734942077517,3.85395,3302.6,3301.7,9.94646803]
[1734942077719,0.02106558,3302.5,3301.7,9.94646803]
[1734942079259,0.02106558,3302.5,3301.7,1.26690839]
[1734942079459,0.02106558,3302.5,3301.6,3.98952424]
[1734942079612,0.826,3302.6,3301.6,0.96070424]
[1734942080055,6.13280519,3303.3,3302.3,3.0]
[1734942080056,2.52951924,3303.3,3302.3,3.0]
[1734942080260,2.52951924,3303.2,3302.3,3.03027668]
[1734942080420,2.52951924,3303.2,3302.4,3.0]
[1734942081455,3.02719,3303.4,3302.4,3.0]
[1734942081667,0.7887,3303.5,3302.3,1.47348407]
[1734942081822,0.7754,3303.9,3303.2,3.02735]
[1734942082017,2.52951924,3304.0,3303.1,0.8095]
[1734942082248,2.52951924,3304.0,3303.6,3.02694]
[1734942082631,2.52951924,3304.0,3303.4,3.02715]
[1734942083761,3.80165,3304.5,3303.4,3.02715]
[1734942083958,3.02644,3304.3,3303.2,11.70689964]
[1734942084117,3.04758558,3304.2,3303.2,8.67955964]
[1734942084323,0.02106558,3304.2,3303.2,11.70690964]
[1734942084518,0.02106558,3304.2,3303.2,8.67955964]
[1734942084717,3.02659,3304.1,3303.2,8.67955964]
[1734942085229,0.7956,3303.9,3303.2,8.67955964]
[1734942085430,0.02106558,3303.8,3303.2,8.67955964]
[1734942085621,0.7956,3303.9,3303.2,8.67955964]
[1734942085825,3.81517,3304.2,3303.3,0.8164]
[1734942086561,0.7887,3304.2,3303.3,0.8164]
[1734942087063,0.7887,3304.2,3303.5,3.02701]
[1734942087270,0.7867,3304.5,3303.5,3.02701]
[1734942088724,3.81291,3304.5,3303.3,1.76599596]
[1734942088923,3.02636,3304.3,3303.3,4.79323596]
[1734942089137,3.04742558,3304.3,3303.3,4.79323596]
[1734942089473,3.81287,3304.5,3303.4,3.02718]
[1734942089673,0.02106558,3304.4,3303.3,1.76599596]
[1734942089972,3.02635,3304.4,3303.4,3.02717]
[1734942091603,0.7867,3304.5,3303.6,3.02699]
[1734942093786,0.783,3304.9,3304.0,3.0266]
[1734942094083,3.31251924,3304.9,3304.1,3.02652]
[1734942094329,3.31251924,3304.9,3303.9,0.8243]
[1734942094330,3.02613,3304.6,3303.9,0.8243]
[1734942094467,3.02613,3304.6,3303.4,6.5064266]
[1734942094468,3.04725558,3304.5,3303.6,0.8243]
[1734942094798,3.04725558,3304.5,3302.7,8.67955964]
[1734942094799,0.8329,3304.3,3302.7,8.67955964]
[1734942095007,0.8329,3303.4,3302.8,8.67955964]
[1734942095183,0.8329,3303.4,3302.2,2.87482614]
[1734942095184,0.02106558,3303.3,3302.4,1.38574449]
[1734942095384,0.02106558,3303.3,3302.4,4.41383449]
[1734942095584,3.02753,3303.1,3302.3,8.67955964]
[1734942095963,0.8329,3302.9,3301.9,1.26063337]
[1734942096169,3.02783,3302.7,3301.8,0.7708]
[1734942096423,3.02815,3302.4,3301.6,8.67955964]
[1734942096588,0.83756558,3302.3,3301.6,8.67955964]
[1734942097512,0.83756558,3302.3,3301.3,0.61918716]
[1734942097814,0.83756558,3302.3,3301.2,0.7954]
[1734942098112,3.0284,3302.1,3301.2,0.7954]
[1734942098283,3.86577558,3302.3,3301.2,0.7954]
[1734942098480,3.84471,3302.3,3301.2,5.07498896]
[1734942098680,0.8165,3302.3,3301.4,3.02898]
[1734942099113,3.02829,3302.2,3301.2,2.04582896]
[1734942099286,3.02829,3302.2,3301.2,4.25042896]
[1734942099489,0.8165,3302.3,3301.2,4.25042896]
[1734942099817,0.7906,3301.9,3301.0,8.67955964]
[1734942100002,0.7906,3301.9,3301.0,11.70891964]
[1734942100167,0.02106558,3301.8,3301.0,8.67955964]
[1734942100369,0.7906,3301.9,3301.0,11.70887964]
[1734942100601,0.7906,3301.9,3301.1,1.31276152]
[1734942100785,0.02106558,3301.8,3301.1,1.31276152]
[1734942101470,0.7906,3301.9,3301.1,1.31276152]
[1734942101972,0.8308,3302.3,3301.2,0.03028978]
[1734942102310,0.8308,3302.3,3301.1,8.67955964]
[1734942102311,3.02838,3302.1,3301.1,8.67955964]
[1734942102884,0.02106558,3302.0,3301.0,3.02935]
[1734942103417,3.02829,3302.2,3301.1,3.02921]
[1734942104199,3.04935558,3302.2,3301.1,3.02921]
[1734942105281,3.02829,3302.2,3301.1,3.02921]
[1734942105816,3.84997,3302.1,3301.1,3.02921]
[1734942105989,0.02106558,3302.0,3301.0,0.44480856]
[1734942106191,3.02856,3301.9,3301.0,0.44480856]
[1734942106378,0.02106558,3301.8,3301.0,0.44480856]
[1734942108416,0.8216,3302.1,3301.1,1.27711638]
[1734942108716,0.8216,3302.1,3301.3,3.02908]
[1734942108878,0.02106558,3302.0,3301.0,4.24002856]
[1734942109079,3.02875,3301.7,3300.9,0.6173356]
[1734942109304,3.02875,3301.7,3300.5,2.2355578]
[1734942109560,3.02875,3301.7,3300.7,3.02963]
[1734942110045,0.8129,3301.9,3300.8,3.02949]
[1734942110230,0.8129,3301.9,3300.9,3.02944]
[1734942110606,3.84149,3301.9,3300.9,3.02944]
[1734942114044,0.8129,3301.9,3300.7,0.59566052]
[1734942114235,3.02865,3301.8,3300.7,0.99222939]
[1734942114413,3.02865,3301.8,3300.8,3.02955]
[1734942114814,0.8129,3301.9,3300.9,3.02939]
[1734942115015,0.8129,3301.9,3301.1,3.02924]
[1734942116412,0.8129,3301.9,3301.2,3.02919]
[1734942118830,0.8129,3301.9,3301.5,3.02891]
[1734942119171,0.8129,3301.9,3301.3,3.8392]
[1734942119486,0.8129,3301.9,3301.3,0.8101]
[1734942119635,0.8129,3301.9,3301.4,3.02899]
[1734942120180,0.8129,3301.9,3301.3,0.8101]
[1734942120375,0.8129,3301.9,3301.5,3.02892]
[1734942120742,3.02801,3302.5,3301.5,3.02892]
[1734942121077,0.7605,3302.2,3301.6,3.02883]
[1734942121279,0.7605,3302.2,3301.7,0.03028669]
[1734942121485,0.7605,3302.2,3301.4,6.63985824]
[1734942121633,0.7605,3302.2,3301.4,3.63985824]
[1734942121832,0.7605,3302.2,3301.5,3.02891]
[1734942122037,0.7605,3302.2,3301.6,3.0288]
[1734942122235,0.7605,3302.2,3301.4,2.04818428]
[1734942122587,0.7605,3302.8,3301.9,3.02847]
[1734942122729,0.7605,3302.8,3302.0,3.02845]
[1734942123285,0.7605,3302.8,3302.1,0.03028144]
[1734942123489,0.7605,3302.8,3302.1,3.02832]
[1734942123884,2.52951924,3303.4,3302.0,0.0302807]
[1734942123885,0.8325,3303.3,3302.0,5.29423914]
[1734942124080,0.8325,3303.3,3302.3,2.2355578]
[1734942124320,0.8325,3303.3,3302.3,3.0281]
[1734942124498,0.8325,3303.3,3302.3,3.33091]
[1734942124685,0.8325,3303.3,3302.5,3.02798]
[1734942124904,0.8325,3303.3,3302.6,3.02783]
[1734942125219,0.8325,3303.3,3302.4,3.02806]
[1734942125520,0.8325,3303.3,3302.3,8.98236964]
[1734942125668,0.8325,3303.3,3302.8,3.02768]
[1734942125871,0.8325,3303.3,3302.5,3.028]
[1734942126068,0.8325,3303.3,3302.6,3.02791]
[1734942126308,0.8325,3303.3,3302.7,3.02778]
[1734942127315,0.8325,3303.3,3302.6,3.02791]
[1734942127518,0.8325,3303.3,3302.6,3.69654553]
[1734942127824,0.8325,3303.3,3302.4,8.67955964]
[1734942127825,3.04842558,3303.2,3302.4,8.67955964]
[1734942127975,0.7979,3303.1,3302.4,8.67955964]
[1734942128176,0.02106558,3303.0,3302.4,8.67955964]
[1734942128375,0.7979,3303.1,3302.4,8.67955964]
[1734942128575,0.7979,3303.1,3302.2,0.61685977]
[1734942128779,3.02765,3302.9,3302.2,0.61685977]
[1734942129010,0.7979,3303.1,3301.8,0.7837]
[1734942129355,0.7979,3303.1,3302.2,3.02822]
[1734942129920,0.7979,3303.1,3302.2,3.05849927]
[1734942130132,0.7979,3303.1,3302.2,3.02822]
[1734942130294,0.7979,3303.1,3302.1,2.2355578]
[1734942130295,0.7979,3303.1,3302.3,3.02817]
[1734942130639,0.7979,3303.1,3302.4,0.302817]
[1734942131725,0.7979,3303.1,3302.5,0.02435998]
[1734942131929,0.7979,3303.1,3302.6,3.02783]
[1734942132096,0.7979,3303.1,3302.5,3.02799]
[1734942132677,0.7979,3303.1,3302.4,3.0102578]
[1734942132912,0.02106558,3303.8,3302.1,8.67955964]
[1734942132913,0.8084,3303.0,3302.1,8.67955964]
[1734942133111,3.83629,3302.7,3302.1,8.67955964]
[1734942133313,3.04898558,3302.6,3302.1,8.67955964]
[1734942133517,0.8084,3302.5,3301.6,3.0288]
[1734942133717,0.8084,3302.5,3301.6,1.47214174]
[1734942134029,0.8084,3302.8,3302.4,3.02802]
[1734942134222,0.8084,3302.8,3302.1,3.0130578]
[1734942134442,0.8084,3302.8,3302.1,6.0413578]
[1734942134582,0.8084,3302.8,3302.1,5.2638578]
[1734942135479,0.8084,3302.8,3302.1,2.2355578]
[1734942135674,0.7969,3303.6,3302.4,3.0380578]
[1734942135896,3.32641924,3303.6,3302.9,3.02762]
[1734942136091,3.32641924,3303.6,3302.7,2.2355578]
[1734942136290,0.02106558,3303.5,3302.6,8.67955964]
[1734942136507,0.02106558,3303.5,3302.6,10.15411838]
[1734942136694,0.7969,3303.0,3302.6,8.67955964]
[1734942136894,0.02106558,3302.9,3302.1,2.2355578]
[1734942137320,0.7969,3303.0,3302.4,3.02805]
[1734942137518,0.7969,3303.0,3302.2,3.02825]
[1734942137726,0.7969,3303.0,3302.1,2.2355578]
[1734942138033,0.7969,3303.0,3302.4,3.02807]
[1734942138385,0.7969,3303.0,3302.2,4.11976174]
[1734942138983,0.02106558,3302.9,3302.2,1.09151174]
[1734942139296,0.02106558,3302.9,3302.1,2.2355578]
[1734942140416,0.7969,3303.0,3302.1,2.2355578]
[1734942140623,0.7969,3303.0,3302.2,3.02826]
[1734942140831,0.02106558,3302.9,3302.2,3.02826]
[1734942141411,0.7969,3303.0,3302.2,3.02826]
[1734942141618,0.7969,3303.0,3302.2,4.48271457]
[1734942142120,0.7969,3303.0,3302.4,2.2355578]
[1734942142323,0.7969,3303.0,3302.2,1.45445457]
[1734942143639,0.7573,3302.7,3301.8,5.2641678]
[1734942143942,0.7573,3302.7,3300.4,3.15158343]
[1734942143943,0.7573,3302.5,3301.5,9.29570254]
[1734942144081,0.7573,3302.2,3301.0,13.94440744]
[1734942144284,0.7573,3301.9,3301.0,10.91511744]
[1734942144482,0.77836558,3301.9,3301.1,0.59740944]
[1734942144681,0.7573,3301.9,3301.3,2.2355578]
[1734942145624,0.7573,3301.9,3301.2,1.15125269]
[1734942145980,0.7573,3301.9,3301.3,2.2355578]
[1734942146611,0.7573,3301.9,3301.2,1.15125269]
[1734942146921,0.7573,3301.9,3301.2,4.18040269]
[1734942147121,0.7573,3301.9,3301.3,3.01333901]
[1734942147324,0.7804,3302.3,3301.5,8.67955964]
[1734942147637,0.7804,3302.3,3301.8,3.02856]
[1734942147812,0.7804,3302.3,3301.9,3.02847]
[1734942148015,0.7804,3302.3,3301.9,3.331317]
[1734942148225,0.7804,3302.3,3301.7,3.02872]
[1734942148520,0.7804,3302.3,3301.8,3.02864]
[1734942148690,0.7804,3302.3,3301.6,2.26583969]
[1734942148891,0.7635,3302.9,3301.7,8.67955964]
[1734942149087,0.7635,3302.9,3301.8,7.4231799]
[1734942149287,3.79117,3302.9,3301.9,0.59685196]
[1734942149593,6.32068924,3302.9,3301.9,3.62540196]
[1734942149787,3.29301924,3302.9,3302.0,3.02846]
[1734942150049,3.29301924,3302.9,3301.8,4.3945399]
[1734942150204,3.04884558,3302.8,3301.8,4.98860169]
[1734942150414,3.04884558,3302.8,3301.9,4.66968213]
[1734942151297,0.7672,3302.7,3301.7,8.67955964]
[1734942151497,0.7672,3302.5,3301.7,8.67955964]
[1734942151741,0.7672,3302.5,3301.8,3.02859]
[1734942152711,0.7672,3302.5,3301.9,3.02851]
[1734942153023,0.8275,3302.8,3302.1,3.02831]
[1734942153218,0.8275,3302.8,3302.3,3.0]
[1734942153421,2.52951924,3302.9,3302.4,11.73201888]
[1734942153626,3.35701924,3303.1,3302.4,8.67955964]
[1734942154007,0.8095,3302.8,3301.9,3.0]
[1734942154330,0.8095,3302.6,3301.7,8.67955964]
[1734942154558,0.02106558,3302.5,3301.9,0.59452051]
[1734942154758,0.8095,3302.4,3301.7,8.67955964]
[1734942154956,0.8095,3302.4,3301.7,9.39864526]
[1734942155385,0.8095,3302.4,3301.3,3.01333901]
[1734942155530,3.83778,3302.2,3301.3,0.77778121]
[1734942156376,0.8095,3302.2,3301.3,3.01333901]
[1734942156674,0.8079,3302.6,3301.8,8.67955964]
[1734942156822,2.52951924,3302.4,3302.2,3.02825]
[1734942157869,0.8079,3302.6,3302.3,3.02818]
[1734942158249,0.7628,3302.9,3302.1,0.7518]
[1734942158444,0.7628,3302.9,3302.4,3.02809]
[1734942159235,0.7628,3302.9,3302.1,3.7801]
[1734942159572,0.7628,3302.9,3302.2,0.73895987]
[1734942160465,0.7628,3302.9,3302.2,9.41851951]
[1734942160963,0.7628,3302.9,3302.2,12.44676951]
[1734942161464,0.7628,3302.9,3302.2,8.67955964]
[1734942161957,0.7628,3302.9,3302.3,3.02819]
[1734942162373,0.7628,3302.9,3302.2,8.67955964]
[1734942163365,0.7628,3302.9,3302.3,8.67955964]
[1734942166466,0.7628,3302.9,3302.2,11.70781964]
[1734942166639,0.7628,3302.9,3302.3,3.02818]
[1734942167327,0.7628,3302.9,3302.4,3.02806]
[1734942167532,0.7628,3302.9,3302.5,3.02797]
[1734942167793,0.7628,3302.9,3302.7,3.02774]
[1734942167932,2.52951924,3303.1,3303.0,3.02755]
[1734942168678,2.52951924,3303.1,3303.0,8.2631078]
[1734942168891,2.52951924,3303.1,3303.0,2.2355578]
[1734942169039,2.52951924,3303.1,3302.9,11.70717964]
[1734942169234,3.33301924,3303.6,3303.0,8.67955964]
[1734942170070,0.8035,3303.6,3303.0,11.70707964]
[1734942170393,0.8035,3303.6,3303.1,3.02744]
[1734942170556,3.28661924,3303.9,3303.0,12.73269917]
[1734942170892,3.28661924,3303.9,3303.3,3.0443578]
[1734942171039,2.52951924,3303.9,3303.6,2.2355578]
[1734942171489,2.52951924,3303.9,3303.7,3.0]
[1734942171697,2.52951924,3303.9,3303.8,7.41832174]
[1734942171995,2.52951924,3304.2,3303.8,7.41832174]
[1734942172678,0.7571,3304.5,3303.6,10.91511744]
[1734942172875,3.02678,3303.9,3303.0,0.8088]
[1734942173190,3.80498558,3303.8,3302.9,8.67955964]
[1734942173402,3.02715,3303.5,3302.7,8.67955964]
[1734942173542,0.7571,3303.4,3302.6,0.60687238]
[1734942174148,0.7571,3303.4,3302.6,3.63478238]
[1734942174149,3.28661924,3303.4,3302.6,3.63478238]
[1734942174469,3.28661924,3303.4,3302.7,3.02782]
[1734942174671,3.28661924,3303.4,3302.7,2.2355578]
[1734942174991,3.28661924,3303.4,3303.0,3.02754]
[1734942175487,0.7571,3303.4,3303.0,3.02754]
[1734942175693,0.7571,3303.4,3303.0,3.330294]
[1734942175893,3.28641924,3303.8,3303.2,3.02734]
[1734942176076,2.52951924,3303.8,3303.7,3.0269]
[1734942176244,2.52951924,3303.8,3303.4,8.67955964]
[1734942176444,2.52951924,3303.8,3303.4,11.70669964]
[1734942176639,2.52951924,3303.8,3303.5,1.69422574]
[1734942177487,0.7569,3304.2,3303.5,4.72131574]
[1734942177796,0.7569,3304.2,3303.9,3.02672]
[1734942178371,2.52951924,3304.4,3304.2,3.02637]
[1734942178552,2.52951924,3304.4,3304.2,0.302637]
[1734942178754,2.52951924,3304.4,3304.3,6.02635]
[1734942179076,0.7718,3304.8,3304.4,3.02626]
[1734942180038,0.7718,3304.8,3304.2,3.0]
[1734942182283,0.8203,3305.2,3304.5,3.02609]
[1734942182783,0.8203,3305.2,3304.7,3.02596]
[1734942183003,2.52951924,3305.3,3305.0,3.02569]
[1734942183160,0.8203,3305.5,3304.9,8.67955964]
[1734942184047,0.02106558,3305.4,3304.9,8.67955964]
[1734942184368,3.81603,3305.2,3304.0,8.67955964]
[1734942184599,3.02576,3305.0,3304.1,1.09151174]
[1734942184779,3.87137558,3304.9,3304.0,8.67955964]
[1734942184979,0.84556558,3304.9,3304.0,8.67955964]
[1734942185286,0.8245,3304.9,3304.0,8.67955964]
[1734942186212,0.8245,3304.9,3304.1,3.02648]
[1734942186520,0.8245,3304.9,3304.2,3.02643]
[1734942186682,0.8245,3304.9,3304.2,1.17059896]
[1734942186877,0.8245,3304.9,3304.0,8.67955964]
[1734942187084,0.7653,3304.6,3303.7,8.67955964]
[1734942187306,0.7653,3304.6,3303.8,3.0]
[1734942187680,0.7653,3304.6,3304.0,3.02662]
[1734942187918,3.02564,3305.1,3303.9,2.2355578]
[1734942187919,0.7653,3305.0,3303.9,2.2355578]
[1734942188123,0.7653,3305.0,3304.1,3.02652]
[1734942188617,0.7653,3305.0,3304.2,0.7603]
[1734942188804,0.7653,3305.0,3304.3,3.02634]
[1734942189005,0.7653,3305.0,3304.5,3.02609]
[1734942189181,3.16189905,3305.7,3304.6,3.0]
[1734942189182,0.7568,3305.4,3304.6,3.0]
[1734942189377,0.7568,3305.4,3304.6,3.302609]
[1734942189584,3.78216,3305.4,3304.6,0.302609]
[1734942189919,3.02557,3305.2,3304.5,10.91511744]
[1734942190525,0.02106558,3305.3,3304.5,10.91511744]
[1734942190739,3.78218,3305.4,3304.5,10.91511744]
[1734942191015,3.04650558,3305.3,3304.5,10.91511744]